[Event "MCR rapid mládeže 2023 U16"]
[Site "Harachov, Czech Republic"]
[Date "2023.09.09"]
[Round "4.17"]
[White "Walder, Hugo"]
[Black "Frantsev, Iegor"]
[Result "1/2-1/2"]
[TimeControl "20min+5s/move"]
[WhiteElo "1403"]
[BlackElo "1431"]

1. e4 {[%clk 00:20:08]} {[%emt 00:00:02]} c6 {[%clk 00:20:06]} {[%emt
00:00:05]} 2. d4 {[%clk 00:20:11]} {[%emt 00:00:02]} d5 {[%clk 00:20:09]}
{[%emt 00:00:02]} 3. e5 {[%clk 00:20:15]} {[%emt 00:00:01]} Bf5 {[%clk
00:20:12]} {[%emt 00:00:02]} 4. Bd3 {[%clk 00:20:18]} {[%emt 00:00:02]} Bxd3
{[%clk 00:20:14]} {[%emt 00:00:02]} 5. Qxd3 {[%clk 00:20:21]} {[%emt 00:00:02]}
e6 {[%clk 00:20:18]} {[%emt 00:00:02]} 6. f4 {[%clk 00:20:20]} {[%emt
00:00:06]} g6 {[%clk 00:18:42]} {[%emt 00:01:40]} 7. Nf3 {[%clk 00:20:23]}
{[%emt 00:00:02]} c5 {[%clk 00:18:40]} {[%emt 00:00:08]} 8. c3 {[%clk
00:20:25]} {[%emt 00:00:02]} Nc6 {[%clk 00:18:44]} {[%emt 00:00:02]} 9. Be3
{[%clk 00:20:06]} {[%emt 00:00:23]} cxd4 {[%clk 00:17:42]} {[%emt 00:01:07]} 10.
Bxd4 {[%clk 00:19:47]} {[%emt 00:00:25]} Nxd4 {[%clk 00:17:19]} {[%emt
00:00:27]} 11. Nxd4 {[%clk 00:19:22]} {[%emt 00:00:30]} a6 {[%clk 00:16:42]}
{[%emt 00:00:42]} 12. Nd2 {[%clk 00:19:19]} {[%emt 00:00:08]} Bc5 {[%clk
00:16:36]} {[%emt 00:00:10]} 13. O-O {[%clk 00:18:48]} {[%emt 00:00:36]} Nh6
{[%clk 00:16:21]} {[%emt 00:00:21]} 14. Kh1 {[%clk 00:18:49]} {[%emt 00:00:04]}
Bxd4 {[%clk 00:14:32]} {[%emt 00:01:54]} 15. Qxd4 {[%clk 00:18:40]} {[%emt
00:00:14]} Nf5 {[%clk 00:14:25]} {[%emt 00:00:12]} 16. Qf2 {[%clk 00:18:17]}
{[%emt 00:00:23]} O-O {[%clk 00:11:47]} {[%emt 00:02:48]} 17. Nb3 {[%clk
00:17:53]} {[%emt 00:00:26]} Qe7 {[%clk 00:11:17]} {[%emt 00:00:38]} 18. Nd4
{[%clk 00:17:44]} {[%emt 00:00:13]} Nxd4 {[%clk 00:11:02]} {[%emt 00:00:22]} 19.
Qxd4 {[%clk 00:17:42]} {[%emt 00:00:06]} Rfd8 {[%clk 00:10:35]} {[%emt
00:00:32]} 20. Rfd1 {[%clk 00:16:03]} {[%emt 00:01:43]} Rac8 {[%clk 00:09:17]}
{[%emt 00:01:24]} 21. g3 {[%clk 00:13:58]} {[%emt 00:02:10]} Qc5 {[%clk
00:07:41]} {[%emt 00:01:41]} 22. Qxc5 {[%clk 00:13:58]} {[%emt 00:00:05]} Rxc5
{[%clk 00:07:44]} {[%emt 00:00:01]} 23. Rd4 {[%clk 00:13:28]} {[%emt 00:00:35]}
Rdc8 {[%clk 00:07:09]} {[%emt 00:00:41]} 24. Rad1 {[%clk 00:13:13]} {[%emt
00:00:19]} Rb5 {[%clk 00:07:01]} {[%emt 00:00:12]} 25. R1d2 {[%clk 00:12:34]}
{[%emt 00:00:45]} Kf8 {[%clk 00:05:58]} {[%emt 00:01:08]} 26. Kg2 {[%clk
00:12:36]} {[%emt 00:00:04]} Ra5 {[%clk 00:05:12]} {[%emt 00:00:48]} 27. a3
{[%clk 00:12:37]} {[%emt 00:00:06]} Rb5 {[%clk 00:05:14]} {[%emt 00:00:02]} 28.
Rb4 {[%clk 00:12:15]} {[%emt 00:00:28]} Rxb4 {[%clk 00:04:55]} {[%emt
00:00:24]} 29. axb4 {[%clk 00:12:18]} {[%emt 00:00:02]} Rc4 {[%clk 00:04:02]}
{[%emt 00:00:57]} 30. Rd4 {[%clk 00:11:30]} {[%emt 00:00:54]} b5 {[%clk
00:03:35]} {[%emt 00:00:33]} 31. Rxc4 {[%clk 00:11:21]} {[%emt 00:00:13]} bxc4
{[%clk 00:03:00]} {[%emt 00:00:40]} 32. Kf3 {[%clk 00:11:13]} {[%emt 00:00:14]}
Ke7 {[%clk 00:03:02]} {[%emt 00:00:03]} 33. Ke3 {[%clk 00:11:16]} {[%emt
00:00:01]} Kd7 {[%clk 00:03:05]} {[%emt 00:00:02]} 34. g4 {[%clk 00:11:01]}
{[%emt 00:00:21]} Kc6 {[%clk 00:02:57]} {[%emt 00:00:13]} 35. h4 {[%clk
00:11:01]} {[%emt 00:00:03]} Kb5 {[%clk 00:02:20]} {[%emt 00:00:43]} 36. Kd2
{[%clk 00:10:59]} {[%emt 00:00:07]} a5 {[%clk 00:01:11]} {[%emt 00:01:14]} 37.
bxa5 {[%clk 00:10:51]} {[%emt 00:00:13]} Kxa5 {[%clk 00:01:11]} {[%emt
00:00:06]} 38. Kc2 {[%clk 00:10:54]} {[%emt 00:00:01]} Ka4 {[%clk 00:00:39]}
{[%emt 00:00:35]} 39. g5 {[%clk 00:10:51]} {[%emt 00:00:10]} Kb5 {[%clk
00:00:37]} {[%emt 00:00:07]} 40. Kd2 {[%clk 00:10:40]} {[%emt 00:00:17]} Kc5
{[%clk 00:00:16]} {[%emt 00:00:25]} 41. Ke3 {[%clk 00:10:42]} {[%emt 00:00:02]}
Kb5 {[%clk 00:00:20]} {[%emt 00:00:02]} 42. Kd2 {[%clk 00:10:46]} {[%emt
00:00:01]} Ka5 {[%clk 00:00:24]} {[%emt 00:00:01]} 43. Kc1 {[%clk 00:10:47]}
{[%emt 00:00:04]} Kb5 {[%clk 00:00:24]} {[%emt 00:00:06]} 44. Kd2 {[%emt
00:00:17]} 1/2-1/2

[Event "MCR rapid mládeže 2023 U16"]
[Site "Harachov, Czech Republic"]
[Date "2023.09.09"]
[Round "4.18"]
[White "Svadlenka, Michal"]
[Black "Zimovcak, Krystof"]
[Result "1-0"]
[TimeControl "20min+5s/move"]
[WhiteElo "1451"]
[BlackElo "1325"]

1. e4 {[%clk 00:20:08]} {[%emt 00:00:02]} d5 {[%clk 00:20:04]} {[%emt
00:00:06]} 2. exd5 {[%clk 00:20:12]} {[%emt 00:00:02]} Nf6 {[%clk 00:20:08]}
{[%emt 00:00:01]} 3. d4 {[%clk 00:20:08]} {[%emt 00:00:09]} Nxd5 {[%clk
00:20:10]} {[%emt 00:00:03]} 4. Bc4 {[%clk 00:20:02]} {[%emt 00:00:11]} Nb6
{[%clk 00:20:06]} {[%emt 00:00:08]} 5. Bb3 {[%clk 00:20:03]} {[%emt 00:00:04]}
e6 {[%clk 00:20:08]} {[%emt 00:00:04]} 6. Nf3 {[%clk 00:20:05]} {[%emt
00:00:02]} Nc6 {[%clk 00:20:12]} {[%emt 00:00:02]} 7. O-O {[%clk 00:20:07]}
{[%emt 00:00:02]} Bd6 {[%clk 00:20:15]} {[%emt 00:00:02]} 8. c4 {[%clk
00:19:37]} {[%emt 00:00:35]} Bb4 {[%clk 00:19:28]} {[%emt 00:00:52]} 9. a3
{[%clk 00:19:28]} {[%emt 00:00:15]} Ba5 {[%clk 00:19:31]} {[%emt 00:00:01]} 10.
Ba2 {[%clk 00:19:15]} {[%emt 00:00:18]} Nd7 {[%clk 00:18:59]} {[%emt 00:00:38]}
11. b4 {[%clk 00:19:15]} {[%emt 00:00:04]} Nxb4 {[%clk 00:18:38]} {[%emt
00:00:26]} 12. axb4 {[%clk 00:19:18]} {[%emt 00:00:02]} Bxb4 {[%clk 00:18:43]}
{[%emt 00:00:01]} 13. Bd2 {[%clk 00:18:50]} {[%emt 00:00:32]} c5 {[%clk
00:18:37]} {[%emt 00:00:11]} 14. Bxb4 {[%clk 00:18:34]} {[%emt 00:00:22]} cxb4
{[%clk 00:18:40]} {[%emt 00:00:02]} 15. d5 {[%clk 00:17:38]} {[%emt 00:01:01]}
Nb6 {[%clk 00:18:40]} {[%emt 00:00:05]} 16. Re1 {[%clk 00:17:06]} {[%emt
00:00:37]} O-O {[%clk 00:18:35]} {[%emt 00:00:09]} 17. d6 {[%clk 00:16:29]}
{[%emt 00:00:42]} Nd7 {[%clk 00:18:07]} {[%emt 00:00:33]} 18. Nbd2 {[%clk
00:16:18]} {[%emt 00:00:16]} b6 {[%clk 00:17:59]} {[%emt 00:00:13]} 19. Nb3
{[%clk 00:15:44]} {[%emt 00:00:39]} Bb7 {[%clk 00:17:33]} {[%emt 00:00:31]} 20.
Ne5 {[%clk 00:13:15]} {[%emt 00:02:34]} Qg5 {[%clk 00:17:00]} {[%emt 00:00:38]}
21. Nf3 {[%clk 00:12:19]} {[%emt 00:01:01]} Qg4 {[%clk 00:17:02]} {[%emt
00:00:03]} 22. Nbd4 {[%clk 00:10:12]} {[%emt 00:02:12]} Nc5 {[%clk 00:15:03]}
{[%emt 00:02:05]} 23. h3 {[%clk 00:09:54]} {[%emt 00:00:22]} Bxf3 {[%clk
00:14:21]} {[%emt 00:00:47]} 24. Nxf3 {[%clk 00:08:55]} {[%emt 00:01:05]} Qf4
{[%clk 00:13:58]} {[%emt 00:00:28]} 25. g3 {[%clk 00:05:33]} {[%emt 00:03:27]}
Qf6 {[%clk 00:14:00]} {[%emt 00:00:02]} 26. Ne5 {[%clk 00:04:04]} {[%emt
00:01:34]} Rfd8 {[%clk 00:13:21]} {[%emt 00:00:44]} 27. Ng4 {[%clk 00:02:04]}
{[%emt 00:02:06]} Qc3 {[%clk 00:12:53]} {[%emt 00:00:32]} 28. Re3 {[%clk
00:01:53]} {[%emt 00:00:16]} Qb2 {[%clk 00:12:31]} {[%emt 00:00:27]} 29. Re2
{[%clk 00:01:04]} {[%emt 00:00:54]} Qc3 {[%clk 00:12:03]} {[%emt 00:00:32]} 30.
Rc1 {[%clk 00:00:58]} {[%emt 00:00:12]} Qa3 {[%clk 00:12:05]} {[%emt 00:00:03]}
31. Bb1 {[%clk 00:00:48]} {[%emt 00:00:15]} b3 {[%clk 00:11:36]} {[%emt
00:00:33]} 32. Rc3 {[%clk 00:00:44]} {[%emt 00:00:09]} a5 {[%clk 00:11:29]}
{[%emt 00:00:12]} 33. Ne5 {[%clk 00:00:27]} {[%emt 00:00:23]} Qa1 {[%clk
00:11:04]} {[%emt 00:00:30]} 34. Bxh7+ {[%clk 00:00:27]} {[%emt 00:00:04]} Kxh7
{[%clk 00:10:59]} {[%emt 00:00:10]} 35. Qxa1 {[%clk 00:00:31]} {[%emt
00:00:01]} Rxd6 {[%clk 00:10:56]} {[%emt 00:00:08]} 36. Nxf7 {[%clk 00:00:34]}
{[%emt 00:00:03]} Rd7 {[%clk 00:10:53]} {[%emt 00:00:08]} 37. Ng5+ {[%clk
00:00:37]} {[%emt 00:00:01]} Kg8 {[%clk 00:10:54]} {[%emt 00:00:01]} 38. Qb1
{[%clk 00:00:40]} {[%emt 00:00:05]} Rad8 {[%clk 00:10:56]} {[%emt 00:00:03]} 39.
Qh7+ {[%clk 00:00:43]} {[%emt 00:00:02]} Kf8 {[%clk 00:10:56]} {[%emt
00:00:03]} 40. Qh8+ {[%clk 00:00:47]} {[%emt 00:00:03]} Ke7 {[%clk 00:10:58]}
{[%emt 00:00:02]} 41. Qxg7+ {[%clk 00:00:50]} {[%emt 00:00:02]} Kd6 {[%clk
00:11:03]} 42. Qe5+ {[%clk 00:00:39]} {[%emt 00:00:16]} Kc6 {[%clk 00:11:06]}
{[%emt 00:00:01]} 43. Nxe6 {[%clk 00:00:39]} {[%emt 00:00:05]} Nxe6 {[%clk
00:11:03]} {[%emt 00:00:08]} 44. Qxe6+ {[%clk 00:00:43]} {[%emt 00:00:02]} Rd6
{[%clk 00:11:05]} {[%emt 00:00:03]} 45. Qe4+ {[%clk 00:00:41]} {[%emt
00:00:06]} Kc5 {[%clk 00:11:09]} {[%emt 00:00:01]} 46. Rxb3 {[%clk 00:00:30]}
{[%emt 00:00:17]} Rd1+ {[%clk 00:11:02]} {[%emt 00:00:12]} 47. Kg2 {[%clk
00:00:33]} {[%emt 00:00:02]} a4 {[%clk 00:11:06]} {[%emt 00:00:01]} 48. Rb5+
{[%clk 00:00:36]} {[%emt 00:00:02]} Kd6 {[%emt 00:00:06]} 49. Qe7+ {[%clk
00:00:35]} {[%emt 00:00:04]} Kc6 {[%clk 00:11:08]} {[%emt 00:00:04]} 50. Re6+
{[%clk 00:00:38]} {[%emt 00:00:01]} R8d6 {[%clk 00:11:07]} {[%emt 00:00:06]} 51.
Rxd6+ Rxd6 {[%clk 00:11:11]} 52. Rxb6+ {[%clk 00:00:41]} {[%emt 00:00:01]} Kxb6
{[%emt 00:00:04]} 53. Qxd6+ {[%clk 00:00:44]} {[%emt 00:00:01]} 1-0

[Event "MCR rapid mládeže 2023 U16"]
[Site "Harachov, Czech Republic"]
[Date "2023.09.09"]
[Round "4.19"]
[White "Zrust, Lukas"]
[Black "Honcharov, Makar"]
[Result "0-1"]
[TimeControl "20min+5s/move"]
[WhiteElo "1519"]
[BlackElo "1593"]

1. c4 {[%clk 00:20:07]} {[%emt 00:00:03]} Nf6 {[%clk 00:20:09]} {[%emt
00:00:01]} 2. Nc3 {[%clk 00:20:05]} {[%emt 00:00:07]} g6 {[%clk 00:20:12]}
{[%emt 00:00:01]} 3. g3 {[%clk 00:20:09]} {[%emt 00:00:01]} Bg7 {[%clk
00:20:17]} 4. Bg2 {[%clk 00:20:13]} O-O {[%clk 00:20:20]} {[%emt 00:00:02]} 5.
Nf3 {[%clk 00:20:16]} {[%emt 00:00:01]} d6 {[%clk 00:20:22]} {[%emt 00:00:03]}
6. O-O {[%clk 00:20:17]} {[%emt 00:00:04]} e5 {[%clk 00:20:26]} {[%emt
00:00:01]} 7. d3 {[%clk 00:20:12]} {[%emt 00:00:10]} Nc6 {[%clk 00:20:29]}
{[%emt 00:00:02]} 8. Bd2 {[%clk 00:20:12]} {[%emt 00:00:06]} h6 {[%clk
00:20:26]} {[%emt 00:00:07]} 9. a3 {[%clk 00:20:12]} {[%emt 00:00:05]} a5
{[%clk 00:20:30]} {[%emt 00:00:01]} 10. Nb5 {[%clk 00:20:12]} {[%emt 00:00:05]}
Be6 {[%clk 00:19:54]} {[%emt 00:00:40]} 11. Qc2 {[%clk 00:19:45]} {[%emt
00:00:32]} Qd7 {[%clk 00:19:44]} {[%emt 00:00:16]} 12. e3 {[%clk 00:19:20]}
{[%emt 00:00:30]} Bh3 {[%clk 00:19:44]} {[%emt 00:00:04]} 13. Bc3 {[%clk
00:18:53]} {[%emt 00:00:32]} Bxg2 {[%clk 00:18:22]} {[%emt 00:01:27]} 14. Kxg2
{[%clk 00:18:54]} {[%emt 00:00:04]} Nh5 {[%clk 00:18:16]} {[%emt 00:00:11]} 15.
d4 {[%clk 00:18:34]} {[%emt 00:00:25]} Rae8 {[%clk 00:17:45]} {[%emt 00:00:36]}
16. d5 {[%clk 00:17:57]} {[%emt 00:00:43]} Ne7 {[%clk 00:17:30]} {[%emt
00:00:19]} 17. Bxa5 {[%clk 00:17:55]} {[%emt 00:00:08]} e4 {[%clk 00:17:32]}
{[%emt 00:00:02]} 18. Nd2 {[%clk 00:16:41]} {[%emt 00:01:20]} c6 {[%clk
00:16:18]} {[%emt 00:01:19]} 19. dxc6 {[%clk 00:16:23]} {[%emt 00:00:23]} bxc6
{[%clk 00:16:22]} {[%emt 00:00:01]} 20. Nd4 {[%clk 00:15:40]} {[%emt 00:00:47]}
Bxd4 {[%clk 00:15:43]} {[%emt 00:00:44]} 21. exd4 {[%clk 00:15:37]} {[%emt
00:00:09]} d5 {[%clk 00:15:30]} {[%emt 00:00:18]} 22. Rfe1 {[%clk 00:13:09]}
{[%emt 00:02:33]} Nf5 {[%clk 00:15:21]} {[%emt 00:00:14]} 23. Bb4 {[%clk
00:12:01]} {[%emt 00:01:13]} Nxd4 {[%clk 00:13:01]} {[%emt 00:02:25]} 24. Qc3
{[%clk 00:11:57]} {[%emt 00:00:08]} Nf5 {[%clk 00:11:50]} {[%emt 00:01:17]} 25.
Bxf8 {[%clk 00:10:18]} {[%emt 00:01:44]} Rxf8 {[%clk 00:11:09]} {[%emt
00:00:46]} 26. Nb3 {[%clk 00:08:58]} {[%emt 00:01:25]} d4 {[%clk 00:10:37]}
{[%emt 00:00:38]} 27. Rad1 {[%clk 00:07:20]} {[%emt 00:01:42]} Nh4+ {[%clk
00:10:40]} {[%emt 00:00:02]} 28. gxh4 {[%clk 00:05:38]} {[%emt 00:01:47]} Qg4+
{[%clk 00:10:44]} 29. Qg3 {[%clk 00:05:40]} {[%emt 00:00:04]} Nxg3 {[%clk
00:10:46]} 30. hxg3 {[%clk 00:05:43]} {[%emt 00:00:05]} Qf3+ {[%clk 00:10:50]}
31. Kg1 {[%clk 00:05:37]} {[%emt 00:00:11]} Qxb3 {[%clk 00:10:43]} {[%emt
00:00:13]} 32. Rxd4 {[%clk 00:05:31]} {[%emt 00:00:10]} f5 {[%clk 00:10:47]}
{[%emt 00:00:01]} 33. Rd2 {[%clk 00:05:27]} {[%emt 00:00:09]} f4 {[%clk
00:10:29]} {[%emt 00:00:24]} 34. Kh2 {[%clk 00:05:00]} {[%emt 00:00:31]} Qxc4
{[%clk 00:10:19]} {[%emt 00:00:15]} 35. gxf4 {[%clk 00:04:44]} {[%emt
00:00:21]} Rxf4 {[%clk 00:10:22]} {[%emt 00:00:03]} 36. Rg1 {[%clk 00:04:42]}
{[%emt 00:00:06]} Rxh4+ {[%clk 00:10:19]} {[%emt 00:00:08]} 37. Kg3 {[%clk
00:04:45]} {[%emt 00:00:02]} Rg4+ {[%clk 00:10:16]} {[%emt 00:00:08]} 38. Kxg4
{[%clk 00:04:35]} {[%emt 00:00:15]} e3+ {[%clk 00:10:21]} 0-1

[Event "MCR rapid mládeže 2023 U16"]
[Site "Harachov, Czech Republic"]
[Date "2023.09.09"]
[Round "4.20"]
[White "Rudlof, Adam"]
[Black "Boff, Ondrej"]
[Result "1/2-1/2"]
[TimeControl "20min+5s/move"]
[WhiteElo "1436"]
[BlackElo "1486"]

1. e4 {[%clk 00:20:04]} {[%emt 00:00:06]} c5 {[%clk 00:20:04]} {[%emt
00:00:07]} 2. Nf3 {[%clk 00:20:00]} {[%emt 00:00:09]} Nc6 {[%clk 00:20:05]}
{[%emt 00:00:03]} 3. d4 {[%clk 00:20:03]} {[%emt 00:00:02]} cxd4 {[%clk
00:20:05]} {[%emt 00:00:06]} 4. Nxd4 {[%clk 00:20:02]} {[%emt 00:00:06]} e5
{[%clk 00:20:08]} {[%emt 00:00:01]} 5. Nb5 {[%clk 00:20:04]} {[%emt 00:00:04]}
d6 {[%clk 00:20:12]} {[%emt 00:00:01]} 6. N1c3 {[%clk 00:20:08]} a6 {[%clk
00:20:15]} {[%emt 00:00:02]} 7. Na3 {[%clk 00:20:12]} {[%emt 00:00:01]} Be7
{[%clk 00:20:10]} {[%emt 00:00:10]} 8. Nc4 {[%clk 00:19:09]} {[%emt 00:01:08]}
b5 {[%clk 00:19:58]} {[%emt 00:00:17]} 9. Ne3 {[%clk 00:17:41]} {[%emt
00:01:33]} Nf6 {[%clk 00:19:49]} {[%emt 00:00:13]} 10. Ned5 {[%clk 00:16:32]}
{[%emt 00:01:15]} Be6 {[%clk 00:18:02]} {[%emt 00:01:52]} 11. Nxf6+ {[%clk
00:16:31]} {[%emt 00:00:05]} Bxf6 {[%clk 00:17:50]} {[%emt 00:00:17]} 12. Be3
{[%clk 00:16:24]} {[%emt 00:00:13]} O-O {[%clk 00:17:14]} {[%emt 00:00:40]} 13.
Nd5 {[%clk 00:16:12]} {[%emt 00:00:18]} Bxd5 {[%clk 00:16:37]} {[%emt
00:00:42]} 14. Qxd5 {[%clk 00:16:08]} {[%emt 00:00:09]} Qc7 {[%clk 00:16:20]}
{[%emt 00:00:21]} 15. c3 {[%clk 00:15:56]} {[%emt 00:00:16]} Ne7 {[%clk
00:14:51]} {[%emt 00:01:35]} 16. Qd2 {[%clk 00:14:55]} {[%emt 00:01:03]} Qc6
{[%clk 00:14:36]} {[%emt 00:00:23]} 17. Bd3 {[%clk 00:11:59]} {[%emt 00:03:02]}
Rfd8 {[%clk 00:13:36]} {[%emt 00:01:03]} 18. O-O {[%clk 00:11:28]} {[%emt
00:00:37]} Ng6 {[%clk 00:12:38]} {[%emt 00:01:03]} 19. g3 {[%clk 00:10:14]}
{[%emt 00:01:19]} d5 {[%clk 00:10:52]} {[%emt 00:01:51]} 20. Qc2 {[%clk
00:10:02]} {[%emt 00:00:15]} d4 {[%clk 00:09:20]} {[%emt 00:01:39]} 21. cxd4
{[%clk 00:09:59]} {[%emt 00:00:09]} Qxc2 {[%clk 00:09:23]} {[%emt 00:00:02]} 22.
Bxc2 {[%clk 00:10:02]} {[%emt 00:00:02]} exd4 {[%clk 00:09:25]} {[%emt
00:00:02]} 23. Bd2 {[%clk 00:08:46]} {[%emt 00:01:21]} d3 {[%clk 00:08:54]}
{[%emt 00:00:36]} 24. Bb3 {[%clk 00:08:45]} {[%emt 00:00:06]} Bxb2 {[%clk
00:08:28]} {[%emt 00:00:31]} 25. Rab1 {[%clk 00:08:40]} {[%emt 00:00:10]} Bd4
{[%clk 00:08:06]} {[%emt 00:00:26]} 26. Bd5 {[%clk 00:08:12]} {[%emt 00:00:34]}
Ra7 {[%clk 00:06:43]} {[%emt 00:01:27]} 27. Ba5 {[%clk 00:07:48]} {[%emt
00:00:30]} Rc8 {[%clk 00:04:10]} {[%emt 00:02:37]} 28. Rbc1 {[%clk 00:07:14]}
{[%emt 00:00:41]} Re8 {[%clk 00:03:28]} {[%emt 00:00:43]} 29. Bc6 {[%clk
00:06:27]} {[%emt 00:00:53]} Rc8 {[%clk 00:02:59]} {[%emt 00:00:35]} 30. Bd5
{[%clk 00:06:30]} {[%emt 00:00:03]} Re8 {[%clk 00:02:54]} {[%emt 00:00:08]} 31.
Bc6 {[%clk 00:05:42]} {[%emt 00:00:56]} Rc8 {[%clk 00:02:55]} {[%emt 00:00:03]}
32. Bd5 {[%emt 00:00:09]} 1/2-1/2

[Event "MCR rapid mládeže 2023 U16"]
[Site "Harachov, Czech Republic"]
[Date "2023.09.09"]
[Round "4.21"]
[White "Sochor, Antonin"]
[Black "Kovac, Pavel"]
[Result "1-0"]
[TimeControl "20min+5s/move"]
[WhiteElo "1480"]
[BlackElo "1254"]

1. d4 {[%clk 00:20:05]} {[%emt 00:00:02]} Nf6 {[%clk 00:20:08]} {[%emt
00:00:04]} 2. Nf3 {[%clk 00:19:59]} {[%emt 00:00:11]} g6 {[%clk 00:20:11]}
{[%emt 00:00:02]} 3. c4 {[%clk 00:20:03]} {[%emt 00:00:02]} c5 {[%clk
00:20:06]} {[%emt 00:00:09]} 4. d5 {[%clk 00:20:01]} {[%emt 00:00:07]} b5
{[%clk 00:20:09]} {[%emt 00:00:02]} 5. cxb5 {[%clk 00:19:51]} {[%emt 00:00:15]}
a6 {[%clk 00:20:12]} {[%emt 00:00:02]} 6. bxa6 {[%clk 00:19:50]} {[%emt
00:00:06]} Bxa6 {[%clk 00:20:14]} {[%emt 00:00:03]} 7. Nc3 {[%clk 00:19:47]}
{[%emt 00:00:08]} Bg7 {[%clk 00:20:16]} {[%emt 00:00:02]} 8. e4 {[%clk
00:19:44]} {[%emt 00:00:08]} Bxf1 {[%clk 00:20:12]} {[%emt 00:00:09]} 9. Kxf1
{[%clk 00:19:40]} {[%emt 00:00:09]} d6 {[%clk 00:20:08]} {[%emt 00:00:10]} 10.
g3 {[%clk 00:19:39]} {[%emt 00:00:06]} O-O {[%clk 00:20:03]} {[%emt 00:00:10]}
11. Kg2 {[%clk 00:19:41]} {[%emt 00:00:02]} Nbd7 {[%clk 00:19:59]} {[%emt
00:00:10]} 12. Re1 {[%clk 00:19:36]} {[%emt 00:00:09]} Ne5 {[%clk 00:19:04]}
{[%emt 00:01:00]} 13. Nxe5 {[%clk 00:19:35]} {[%emt 00:00:06]} dxe5 {[%clk
00:19:06]} {[%emt 00:00:03]} 14. Be3 {[%clk 00:19:35]} {[%emt 00:00:05]} Qa5
{[%clk 00:18:21]} {[%emt 00:00:50]} 15. Qc2 {[%clk 00:19:25]} {[%emt 00:00:15]}
Rfb8 {[%clk 00:17:56]} {[%emt 00:00:30]} 16. b3 {[%clk 00:19:04]} {[%emt
00:00:25]} Nd7 {[%clk 00:16:31]} {[%emt 00:01:30]} 17. Rec1 {[%clk 00:18:24]}
{[%emt 00:00:45]} Nb6 {[%clk 00:14:19]} {[%emt 00:02:17]} 18. Ne2 {[%clk
00:18:17]} {[%emt 00:00:11]} Nd7 {[%clk 00:13:44]} {[%emt 00:00:41]} 19. Bxc5
{[%clk 00:18:05]} {[%emt 00:00:18]} Qxc5 {[%clk 00:12:52]} {[%emt 00:00:56]} 20.
Qxc5 {[%clk 00:17:37]} {[%emt 00:00:34]} Nxc5 {[%clk 00:12:55]} {[%emt
00:00:01]} 21. Rxc5 {[%clk 00:17:26]} {[%emt 00:00:16]} Rxb3 {[%clk 00:12:49]}
{[%emt 00:00:11]} 22. axb3 {[%clk 00:16:48]} {[%emt 00:00:44]} Rxa1 {[%clk
00:12:51]} {[%emt 00:00:02]} 23. Nc3 {[%clk 00:16:43]} {[%emt 00:00:10]} Bf8
{[%clk 00:11:57]} {[%emt 00:00:59]} 24. Rc8 {[%clk 00:16:28]} {[%emt 00:00:21]}
Kg7 {[%clk 00:11:55]} {[%emt 00:00:07]} 25. b4 {[%clk 00:16:25]} {[%emt
00:00:07]} e6 {[%clk 00:11:09]} {[%emt 00:00:51]} 26. b5 {[%clk 00:16:25]}
{[%emt 00:00:04]} Ra7 {[%clk 00:10:29]} {[%emt 00:00:44]} 27. b6 {[%clk
00:16:11]} {[%emt 00:00:21]} Rb7 {[%clk 00:10:12]} {[%emt 00:00:21]} 28. Na4
{[%clk 00:16:14]} {[%emt 00:00:02]} Bd6 {[%clk 00:10:02]} {[%emt 00:00:15]} 29.
Rc6 {[%clk 00:15:39]} {[%emt 00:00:40]} Bb4 {[%clk 00:08:16]} {[%emt 00:01:51]}
30. Rc7 {[%clk 00:15:23]} {[%emt 00:00:20]} Rb8 {[%clk 00:08:17]} {[%emt
00:00:06]} 31. dxe6 {[%clk 00:15:26]} {[%emt 00:00:02]} Kf6 {[%clk 00:07:46]}
{[%emt 00:00:36]} 32. exf7 {[%clk 00:15:09]} {[%emt 00:00:20]} Be7 {[%clk
00:07:41]} {[%emt 00:00:11]} 33. b7 {[%clk 00:14:33]} {[%emt 00:00:42]} Bf8
{[%clk 00:05:34]} {[%emt 00:02:12]} 34. Rc8 {[%clk 00:14:04]} {[%emt 00:00:33]}
1-0